[Event "*** Titled Tuesday Blitz"]
[Site "Chess.com"]
[Date "2021.03.09"]
[Round "9"]
[White "Homyakova_Elena"]
[Black "Orest_Vovk"]
[Result "0-1"]
[WhiteElo "2277"]
[BlackElo "2436"]
[TimeControl "180+1"]
[EndTime "11:48:43 PST"]
[Termination "Orest_Vovk won by resignation"]

1. e4 {[%clk 0:03:00.9]} 1... g6 {[%clk 0:02:54.7]} 2. d4 {[%clk 0:03:00.4]}
2... Bg7 {[%clk 0:02:55.6]} 3. Nc3 {[%clk 0:03:00.7]} 3... d6 {[%clk 0:02:56.5]}
4. Be3 {[%clk 0:03:00.9]} 4... Nd7 {[%clk 0:02:57.4]} 5. f3 {[%clk 0:03:00.2]}
5... e6 {[%clk 0:02:58.3]} 6. Qd2 {[%clk 0:03:00.6]} 6... Ne7 {[%clk 0:02:59.1]}
7. h4 {[%clk 0:02:58.7]} 7... h6 {[%clk 0:02:58.7]} 8. O-O-O {[%clk 0:02:56.6]}
8... b6 {[%clk 0:02:58.9]} 9. g4 {[%clk 0:02:53.9]} 9... Bb7 {[%clk 0:02:59]}
10. Nh3 {[%clk 0:02:46.1]} 10... a6 {[%clk 0:02:56.1]} 11. Bg2 {[%clk
0:02:27.2]} 11... Qb8 {[%clk 0:02:23.7]} 12. h5 {[%clk 0:02:24.9]} 12... g5
{[%clk 0:02:23.4]} 13. f4 {[%clk 0:02:24.1]} 13... gxf4 {[%clk 0:02:20.7]} 14.
Nxf4 {[%clk 0:02:16.4]} 14... Nf6 {[%clk 0:02:12.9]} 15. g5 {[%clk 0:01:43.6]}
15... hxg5 {[%clk 0:02:11]} 16. Nd3 {[%clk 0:01:38.9]} 16... Ng4 {[%clk
0:01:48.2]} 17. Bxg5 {[%clk 0:01:30.7]} 17... Bxd4 {[%clk 0:01:46.7]} 18. Bxe7
{[%clk 0:01:18.5]} 18... Be3 {[%clk 0:01:44.4]} 19. Bg5 {[%clk 0:01:00.6]} 19...
Bxd2+ {[%clk 0:01:43.1]} 20. Rxd2 {[%clk 0:01:01]} 20... Nh6 {[%clk 0:01:34.9]}
21. Nf4 {[%clk 0:00:55.6]} 21... Bc6 {[%clk 0:01:26.4]} 22. Rf1 {[%clk
0:00:50.1]} 22... Qb7 {[%clk 0:01:25.8]} 23. Nfd5 {[%clk 0:00:33.8]} 23... Bxd5
{[%clk 0:01:15.5]} 24. exd5 {[%clk 0:00:34.7]} 24... e5 {[%clk 0:01:02.9]} 25.
Ne4 {[%clk 0:00:32.3]} 25... f5 {[%clk 0:01:01.3]} 26. Nf6+ {[%clk 0:00:22.1]}
26... Kf7 {[%clk 0:01:01.2]} 27. Bh3 {[%clk 0:00:20.3]} 27... Raf8 {[%clk
0:00:45.5]} 28. Bxf5 {[%clk 0:00:14.8]} 28... Nxf5 {[%clk 0:00:41.7]} 29. Rxf5
{[%clk 0:00:15.7]} 29... Qc8 {[%clk 0:00:34.5]} 30. Rdf2 {[%clk 0:00:12.8]}
30... Kg7 {[%clk 0:00:34.3]} 31. h6+ {[%clk 0:00:10.2]} 31... Kg6 {[%clk
0:00:33]} 32. Bh4 {[%clk 0:00:06.3]} 32... Qxf5 {[%clk 0:00:32]} 33. Rxf5 {[%clk
0:00:06.7]} 33... Kxf5 {[%clk 0:00:32.4]} 34. Nd7 {[%clk 0:00:07.1]} 34... Rxh6
{[%clk 0:00:30.5]} 35. Nxf8 {[%clk 0:00:06.3]} 35... Rxh4 {[%clk 0:00:30.1]} 36.
Ne6 {[%clk 0:00:06.9]} 36... Rh7 {[%clk 0:00:26.6]} 37. Kd2 {[%clk 0:00:07.2]}
37... c6 {[%clk 0:00:24.3]} 38. c4 {[%clk 0:00:06.6]} 38... b5 {[%clk
0:00:23.9]} 39. b3 {[%clk 0:00:06.4]} 39... bxc4 {[%clk 0:00:23.8]} 40. bxc4
{[%clk 0:00:06.7]} 40... cxd5 {[%clk 0:00:24.1]} 41. cxd5 {[%clk 0:00:07.6]}
41... Rh2+ {[%clk 0:00:18.4]} 42. Kd3 {[%clk 0:00:08]} 42... Rxa2 {[%clk
0:00:18.6]} 43. Kc4 {[%clk 0:00:08.3]} 43... Rd2 {[%clk 0:00:16.7]} 44. Kb3
{[%clk 0:00:08.7]} 44... Rxd5 {[%clk 0:00:15.4]} 45. Nc7 {[%clk 0:00:09.6]}
45... Rd4 {[%clk 0:00:15.2]} 46. Nxa6 {[%clk 0:00:09.5]} 46... e4 {[%clk
0:00:15.1]} 47. Kc3 {[%clk 0:00:09]} 47... Rd3+ {[%clk 0:00:12.8]} 48. Kc2
{[%clk 0:00:09.6]} 48... d5 {[%clk 0:00:13.3]} 49. Nb4 {[%clk 0:00:10.2]} 49...
Rd4 {[%clk 0:00:10.7]} 50. Na2 {[%clk 0:00:07.1]} 50... e3 {[%clk 0:00:09.5]}
51. Kc3 {[%clk 0:00:07.3]} 51... Rd2 {[%clk 0:00:09.3]} 52. Nc1 {[%clk
0:00:07.8]} 52... d4+ {[%clk 0:00:09.7]} 53. Kc4 {[%clk 0:00:07.8]} 53... Ke4
{[%clk 0:00:09.5]} 54. Nb3 {[%clk 0:00:07.5]} 54... Rc2+ {[%clk 0:00:09.5]} 55.
Kb4 {[%clk 0:00:08]} 55... Rb2 {[%clk 0:00:09.7]} 56. Kc4 {[%clk 0:00:07.9]}
56... Rxb3 {[%clk 0:00:09.9]} 57. Kxb3 {[%clk 0:00:08.8]} 57... e2 {[%clk
0:00:10.4]} 0-1

[Event "*** Titled Tuesday Blitz"]
[Site "Chess.com"]
[Date "2021.03.09"]
[Round "9"]
[White "Andrii_Prydun"]
[Black "NovikovaGalina"]
[Result "0-1"]
[WhiteElo "2278"]
[BlackElo "2398"]
[TimeControl "180+1"]
[EndTime "11:48:45 PST"]
[Termination "NovikovaGalina won on time"]

1. d4 {[%clk 0:03:00.9]} 1... d5 {[%clk 0:02:59.7]} 2. Nc3 {[%clk 0:03:00.8]}
2... e6 {[%clk 0:02:58.7]} 3. e4 {[%clk 0:02:59.9]} 3... Bb4 {[%clk 0:02:57.7]}
4. exd5 {[%clk 0:02:58.7]} 4... exd5 {[%clk 0:02:58.6]} 5. Bd3 {[%clk
0:02:58.6]} 5... Nf6 {[%clk 0:02:57.9]} 6. Ne2 {[%clk 0:02:57.1]} 6... Bg4
{[%clk 0:02:58.4]} 7. f3 {[%clk 0:02:55.9]} 7... Bh5 {[%clk 0:02:57.8]} 8. Bg5
{[%clk 0:02:55.6]} 8... c6 {[%clk 0:02:56.8]} 9. a3 {[%clk 0:02:54.5]} 9... Bd6
{[%clk 0:02:55.3]} 10. Qd2 {[%clk 0:02:52.5]} 10... b5 {[%clk 0:02:51]} 11. Nf4
{[%clk 0:02:44.8]} 11... Bg6 {[%clk 0:02:49.5]} 12. Nxg6 {[%clk 0:02:43.9]}
12... hxg6 {[%clk 0:02:50.4]} 13. g3 {[%clk 0:02:14.1]} 13... Bxg3+ {[%clk
0:02:44.7]} 14. Kf1 {[%clk 0:02:06.8]} 14... Bd6 {[%clk 0:02:40.6]} 15. Kg2
{[%clk 0:02:05.3]} 15... O-O {[%clk 0:02:34.3]} 16. h4 {[%clk 0:01:55.4]} 16...
Nbd7 {[%clk 0:02:30.8]} 17. h5 {[%clk 0:01:54.6]} 17... gxh5 {[%clk 0:01:56.3]}
18. Rxh5 {[%clk 0:01:53.6]} 18... Nxh5 {[%clk 0:01:54.8]} 19. Bxd8 {[%clk
0:01:46.7]} 19... Raxd8 {[%clk 0:01:54.3]} 20. Rh1 {[%clk 0:01:39.2]} 20... Ndf6
{[%clk 0:01:52.7]} 21. Ne2 {[%clk 0:01:35.9]} 21... Rfe8 {[%clk 0:01:48.7]} 22.
Qg5 {[%clk 0:01:30.2]} 22... g6 {[%clk 0:01:10.3]} 23. c3 {[%clk 0:00:49]} 23...
Kg7 {[%clk 0:01:08.6]} 24. Kf2 {[%clk 0:00:46.6]} 24... Re7 {[%clk 0:00:58.4]}
25. Rg1 {[%clk 0:00:43.5]} 25... Rde8 {[%clk 0:00:56.7]} 26. Kf1 {[%clk
0:00:35.5]} 26... a6 {[%clk 0:00:56.1]} 27. Rg2 {[%clk 0:00:33.5]} 27... c5
{[%clk 0:00:55.8]} 28. b4 {[%clk 0:00:30.7]} 28... c4 {[%clk 0:00:55.2]} 29. Bc2
{[%clk 0:00:27.5]} 29... Re3 {[%clk 0:00:44.9]} 30. Bd1 {[%clk 0:00:11.4]} 30...
Rd3 {[%clk 0:00:36.8]} 31. Bc2 {[%clk 0:00:10.5]} 31... Rde3 {[%clk 0:00:35.5]}
32. Bd1 {[%clk 0:00:09.6]} 32... Rxf3+ {[%clk 0:00:35]} 33. Kg1 {[%clk
0:00:09.5]} 33... Rfe3 {[%clk 0:00:26]} 34. Rf2 {[%clk 0:00:08]} 34... R8e4
{[%clk 0:00:21.8]} 35. Rg2 {[%clk 0:00:01.8]} 35... Nf4 {[%clk 0:00:15.8]} 36.
Rg4 {[%clk 0:00:01.4]} 36... Nxe2+ {[%clk 0:00:14.6]} 37. Bxe2 {[%clk
0:00:01.5]} 37... Rxe2 {[%clk 0:00:14.6]} 38. Rxe4 {[%clk 0:00:02.1]} 38... Rxe4
{[%clk 0:00:15.5]} 39. Qd2 {[%clk 0:00:02.2]} 39... Bf4 {[%clk 0:00:14.1]} 40.
Qg2 {[%clk 0:00:02.2]} 40... Be3+ {[%clk 0:00:15]} 41. Kf1 {[%clk 0:00:02.2]}
41... Rf4+ {[%clk 0:00:13.5]} 42. Ke1 {[%clk 0:00:02.6]} 42... Bf2+ {[%clk
0:00:13.1]} 43. Kd2 {[%clk 0:00:02.4]} 43... Ne4+ {[%clk 0:00:12]} 44. Kc2
{[%clk 0:00:02.7]} 44... Bxd4 {[%clk 0:00:11.6]} 45. Qg4 {[%clk 0:00:01.4]}
45... Rf2+ {[%clk 0:00:12.5]} 46. Kc1 {[%clk 0:00:01]} 46... Bxc3 {[%clk
0:00:09.2]} 47. a4 {[%clk 0:00:01.4]} 47... bxa4 {[%clk 0:00:08.5]} 48. b5
{[%clk 0:00:01]} 48... axb5 {[%clk 0:00:09.4]} 49. Qd7 {[%clk 0:00:01.3]} 49...
Bd2+ {[%clk 0:00:08.7]} 50. Kd1 {[%clk 0:00:02.2]} 50... Bb4 {[%clk 0:00:06.9]}
51. Qc8 {[%clk 0:00:02.1]} 51... a3 {[%clk 0:00:06.5]} 0-1

[Event "*** Titled Tuesday Blitz"]
[Site "Chess.com"]
[Date "2021.03.09"]
[Round "9"]
[White "LEGENYA1998"]
[Black "LileKoridze"]
[Result "0-1"]
[WhiteElo "2255"]
[BlackElo "2428"]
[TimeControl "180+1"]
[EndTime "11:48:46 PST"]
[Termination "LileKoridze won on time"]

1. d4 {[%clk 0:02:58.2]} 1... Nf6 {[%clk 0:02:56.5]} 2. Nf3 {[%clk 0:02:56.8]}
2... d5 {[%clk 0:02:56]} 3. Bg5 {[%clk 0:02:53.8]} 3... e6 {[%clk 0:02:50.9]} 4.
e3 {[%clk 0:02:51.9]} 4... c5 {[%clk 0:02:50.4]} 5. c3 {[%clk 0:02:46.4]} 5...
Nc6 {[%clk 0:02:49.9]} 6. Bd3 {[%clk 0:02:42.6]} 6... h6 {[%clk 0:02:49.1]} 7.
Bf4 {[%clk 0:02:40.1]} 7... b6 {[%clk 0:02:48.3]} 8. Bb5 {[%clk 0:02:36.1]} 8...
Bd7 {[%clk 0:02:48]} 9. O-O {[%clk 0:02:33.9]} 9... Be7 {[%clk 0:02:46.8]} 10.
h3 {[%clk 0:02:33.2]} 10... O-O {[%clk 0:02:46.7]} 11. Nbd2 {[%clk 0:02:31]}
11... a6 {[%clk 0:02:41.8]} 12. Bd3 {[%clk 0:02:30.5]} 12... Bc8 {[%clk
0:02:36.8]} 13. Qe2 {[%clk 0:02:30.2]} 13... Bb7 {[%clk 0:02:36.6]} 14. Ne5
{[%clk 0:02:29.7]} 14... Rc8 {[%clk 0:02:35.5]} 15. a3 {[%clk 0:02:15.9]} 15...
Nxe5 {[%clk 0:02:33.1]} 16. dxe5 {[%clk 0:02:14.3]} 16... Ne4 {[%clk 0:02:32.8]}
17. Nxe4 {[%clk 0:02:07.6]} 17... dxe4 {[%clk 0:02:32.5]} 18. Bxa6 {[%clk
0:02:07.4]} 18... Bxa6 {[%clk 0:02:33.2]} 19. Qxa6 {[%clk 0:02:07]} 19... Qc7
{[%clk 0:02:31.2]} 20. Qc4 {[%clk 0:02:00]} 20... Qc6 {[%clk 0:02:30.1]} 21. a4
{[%clk 0:01:53.4]} 21... Rfd8 {[%clk 0:02:29.2]} 22. Rfd1 {[%clk 0:01:52.4]}
22... Rd5 {[%clk 0:02:28.6]} 23. Qb5 {[%clk 0:01:43]} 23... Qc7 {[%clk
0:02:25.8]} 24. c4 {[%clk 0:01:38.1]} 24... Rxd1+ {[%clk 0:02:22.5]} 25. Rxd1
{[%clk 0:01:37.8]} 25... Rd8 {[%clk 0:02:23.2]} 26. Qb3 {[%clk 0:01:35.4]} 26...
Rxd1+ {[%clk 0:02:18]} 27. Qxd1 {[%clk 0:01:35]} 27... Qc6 {[%clk 0:02:18.4]}
28. b3 {[%clk 0:01:33.8]} 28... Qc7 {[%clk 0:02:15]} 29. f3 {[%clk 0:01:21.9]}
29... Qc6 {[%clk 0:02:12.3]} 30. Kf2 {[%clk 0:01:19.4]} 30... Bh4+ {[%clk
0:02:08.4]} 31. g3 {[%clk 0:01:17.3]} 31... Be7 {[%clk 0:02:05.2]} 32. g4 {[%clk
0:01:16]} 32... exf3 {[%clk 0:02:02]} 33. Qxf3 {[%clk 0:01:15.3]} 33... Qd7
{[%clk 0:02:02.4]} 34. Ke2 {[%clk 0:01:14.5]} 34... Qa7 {[%clk 0:01:56.2]} 35.
Qe4 {[%clk 0:01:13.2]} 35... Qa5 {[%clk 0:01:55]} 36. Qd3 {[%clk 0:01:12.5]}
36... Bh4 {[%clk 0:01:51.5]} 37. Qd2 {[%clk 0:01:06.5]} 37... Qa8 {[%clk
0:01:49.1]} 38. Kd3 {[%clk 0:00:59.7]} 38... Qh1 {[%clk 0:01:43.9]} 39. Kc2
{[%clk 0:00:52.1]} 39... Qxh3 {[%clk 0:01:39.2]} 40. a5 {[%clk 0:00:52.4]} 40...
bxa5 {[%clk 0:01:33.9]} 41. Qxa5 {[%clk 0:00:51.7]} 41... Qg2+ {[%clk
0:01:32.9]} 42. Qd2 {[%clk 0:00:47.7]} 42... Qxg4 {[%clk 0:01:32.4]} 43. e4
{[%clk 0:00:36.4]} 43... Qf3 {[%clk 0:01:29.9]} 44. Qe3 {[%clk 0:00:35.4]} 44...
Qf1 {[%clk 0:01:25.1]} 45. Kc3 {[%clk 0:00:27.1]} 45... Bf2 {[%clk 0:01:23.3]}
46. Qc1 {[%clk 0:00:21.6]} 46... Be1+ {[%clk 0:00:56.7]} 47. Kb2 {[%clk
0:00:12.4]} 47... Qe2+ {[%clk 0:00:39.5]} 48. Ka3 {[%clk 0:00:05.6]} 48... Bb4+
{[%clk 0:00:37.3]} 49. Ka4 {[%clk 0:00:04.3]} 49... Qa2+ {[%clk 0:00:32.2]} 50.
Kb5 {[%clk 0:00:04.6]} 50... Qa5+ {[%clk 0:00:30.9]} 51. Kc6 {[%clk 0:00:04.8]}
51... Qa6+ {[%clk 0:00:30.2]} 52. Kd7 {[%clk 0:00:04.5]} 52... Qb7+ {[%clk
0:00:29.5]} 53. Ke8 {[%clk 0:00:02.9]} 53... Qc8+ {[%clk 0:00:15]} 54. Ke7
{[%clk 0:00:03.2]} 54... Qb7+ {[%clk 0:00:11.9]} 55. Ke8 {[%clk 0:00:03.2]}
55... Qxe4 {[%clk 0:00:12.5]} 0-1

[Event "*** Titled Tuesday Blitz"]
[Site "Chess.com"]
[Date "2021.03.09"]
[Round "9"]
[White "Skat2704"]
[Black "nrvisakh"]
[Result "1-0"]
[WhiteElo "2619"]
[BlackElo "2761"]
[TimeControl "180+1"]
[EndTime "11:48:47 PST"]
[Termination "Skat2704 won on time"]

1. d4 {[%clk 0:03:00.9]} 1... f5 {[%clk 0:02:53.8]} 2. c4 {[%clk 0:03:00.6]}
2... Nf6 {[%clk 0:02:53.3]} 3. g3 {[%clk 0:03:00.2]} 3... e6 {[%clk 0:02:52.1]}
4. Bg2 {[%clk 0:03:00.3]} 4... Bb4+ {[%clk 0:02:51.8]} 5. Bd2 {[%clk 0:03:00]}
5... Qe7 {[%clk 0:02:48.8]} 6. Nh3 {[%clk 0:02:56.1]} 6... O-O {[%clk
0:02:47.7]} 7. O-O {[%clk 0:02:54.4]} 7... Nc6 {[%clk 0:02:28.4]} 8. e3 {[%clk
0:02:41.7]} 8... a5 {[%clk 0:02:22.8]} 9. Bc1 {[%clk 0:02:36.6]} 9... Qf7 {[%clk
0:02:13.7]} 10. c5 {[%clk 0:02:32.3]} 10... a4 {[%clk 0:02:02.3]} 11. a3 {[%clk
0:02:31.9]} 11... Ba5 {[%clk 0:02:02.1]} 12. Qxa4 {[%clk 0:02:28.7]} 12... b6
{[%clk 0:02:00.9]} 13. Qc2 {[%clk 0:02:23.6]} 13... bxc5 {[%clk 0:01:52]} 14.
dxc5 {[%clk 0:02:22.3]} 14... Ne4 {[%clk 0:01:49.5]} 15. Nd2 {[%clk 0:02:02.7]}
15... Bxd2 {[%clk 0:01:32.7]} 16. Bxd2 {[%clk 0:02:01.9]} 16... Ba6 {[%clk
0:01:31.1]} 17. Rfc1 {[%clk 0:01:49.6]} 17... Ne5 {[%clk 0:01:29]} 18. Nf4
{[%clk 0:01:35.3]} 18... g5 {[%clk 0:01:20.4]} 19. Bxe4 {[%clk 0:01:26.3]} 19...
fxe4 {[%clk 0:01:19]} 20. Qxe4 {[%clk 0:01:25.5]} 20... Qf5 {[%clk 0:00:51.4]}
21. Qxf5 {[%clk 0:01:23.3]} 21... Rxf5 {[%clk 0:00:52.3]} 22. e4 {[%clk
0:01:03.4]} 22... Nf3+ {[%clk 0:00:50.1]} 23. Kg2 {[%clk 0:01:02.9]} 23... Nxd2
{[%clk 0:00:50.1]} 24. exf5 {[%clk 0:01:02.8]} 24... gxf4 {[%clk 0:00:50.2]} 25.
fxe6 {[%clk 0:00:52.6]} 25... dxe6 {[%clk 0:00:40.9]} 26. Rc2 {[%clk 0:00:48.5]}
26... f3+ {[%clk 0:00:29.3]} 27. Kg1 {[%clk 0:00:46.6]} 27... Nb3 {[%clk
0:00:27.5]} 28. Rd1 {[%clk 0:00:44.5]} 28... Be2 {[%clk 0:00:22.8]} 29. Rd7
{[%clk 0:00:42.8]} 29... c6 {[%clk 0:00:22.5]} 30. h4 {[%clk 0:00:42]} 30... Ra5
{[%clk 0:00:20.1]} 31. Rc3 {[%clk 0:00:40.2]} 31... Rb5 {[%clk 0:00:18.1]} 32.
a4 {[%clk 0:00:35.1]} 32... Rb4 {[%clk 0:00:12.2]} 33. a5 {[%clk 0:00:24.4]}
33... Nxa5 {[%clk 0:00:11.9]} 34. h5 {[%clk 0:00:24.1]} 34... Rxb2 {[%clk
0:00:08]} 35. Ra3 {[%clk 0:00:23]} 35... Rb5 {[%clk 0:00:07.7]} 36. h6 {[%clk
0:00:22.7]} 36... Rb7 {[%clk 0:00:07.7]} 37. Rd8+ {[%clk 0:00:21.9]} 37... Kf7
{[%clk 0:00:06.4]} 38. Rxa5 {[%clk 0:00:22.1]} 38... Rb1+ {[%clk 0:00:06.8]} 39.
Kh2 {[%clk 0:00:21.9]} 39... Rf1 {[%clk 0:00:07.3]} 40. Ra7+ {[%clk 0:00:20.8]}
40... Kg6 {[%clk 0:00:07.2]} 41. Rg8+ {[%clk 0:00:19.9]} 41... Kxh6 {[%clk
0:00:07.4]} 42. Rh8 {[%clk 0:00:19.4]} 42... Rxf2+ {[%clk 0:00:07.1]} 43. Kh3
{[%clk 0:00:19.9]} 43... Bd3 {[%clk 0:00:05]} 44. Rf8 {[%clk 0:00:16.6]} 44...
Rf1 {[%clk 0:00:04.8]} 45. Kg4 {[%clk 0:00:15.8]} 45... Bf5+ {[%clk 0:00:04.3]}
46. Kf4 {[%clk 0:00:14.8]} 46... f2 {[%clk 0:00:04.7]} 47. Rf6+ {[%clk
0:00:13.7]} 47... Bg6 {[%clk 0:00:04.7]} 48. g4 {[%clk 0:00:13.2]} 48... Rg1
{[%clk 0:00:04]} 49. g5+ {[%clk 0:00:10.8]} 49... Kh5 {[%clk 0:00:03.3]} 50.
Rxh7+ {[%clk 0:00:09.8]} 1-0

[Event "*** Titled Tuesday Blitz"]
[Site "Chess.com"]
[Date "2021.03.09"]
[Round "9"]
[White "Funo09"]
[Black "Trankuilizer"]
[Result "1-0"]
[WhiteElo "2744"]
[BlackElo "2594"]
[TimeControl "180+1"]
[EndTime "11:48:47 PST"]
[Termination "Funo09 won on time"]

1. e4 {[%clk 0:03:00.9]} 1... e5 {[%clk 0:02:59.4]} 2. Nf3 {[%clk 0:03:00.5]}
2... Nc6 {[%clk 0:02:59.2]} 3. Bb5 {[%clk 0:03:01.1]} 3... a6 {[%clk 0:02:59.2]}
4. Ba4 {[%clk 0:03:01.8]} 4... Nf6 {[%clk 0:02:59]} 5. O-O {[%clk 0:03:02.4]}
5... Be7 {[%clk 0:02:59.4]} 6. Re1 {[%clk 0:03:02.7]} 6... b5 {[%clk 0:02:59.6]}
7. Bb3 {[%clk 0:03:03.4]} 7... d6 {[%clk 0:03:00.5]} 8. c3 {[%clk 0:03:04.1]}
8... O-O {[%clk 0:03:00.3]} 9. d4 {[%clk 0:03:04.7]} 9... Bg4 {[%clk 0:02:56.3]}
10. Be3 {[%clk 0:03:05.1]} 10... exd4 {[%clk 0:02:54.8]} 11. cxd4 {[%clk
0:03:06]} 11... d5 {[%clk 0:02:55.3]} 12. e5 {[%clk 0:03:03.7]} 12... Ne4 {[%clk
0:02:55.7]} 13. Nc3 {[%clk 0:02:48.7]} 13... Nxc3 {[%clk 0:02:55.5]} 14. bxc3
{[%clk 0:02:47.9]} 14... Bh5 {[%clk 0:02:56.4]} 15. Bc2 {[%clk 0:02:42.3]} 15...
Na5 {[%clk 0:02:50.2]} 16. Bf5 {[%clk 0:02:39]} 16... Nc4 {[%clk 0:02:46.7]} 17.
g4 {[%clk 0:02:33.2]} 17... Bg6 {[%clk 0:02:45.6]} 18. Qd3 {[%clk 0:02:31.6]}
18... a5 {[%clk 0:02:42.1]} 19. Kg2 {[%clk 0:02:21.9]} 19... b4 {[%clk
0:02:33.2]} 20. Kg3 {[%clk 0:02:15.1]} 20... bxc3 {[%clk 0:02:04]} 21. h4 {[%clk
0:02:14.2]} 21... Bb4 {[%clk 0:01:50.6]} 22. h5 {[%clk 0:02:08.1]} 22... Bxf5
{[%clk 0:01:50.3]} 23. Qxf5 {[%clk 0:02:05.4]} 23... Ra6 {[%clk 0:01:28.2]} 24.
Bg5 {[%clk 0:01:45.7]} 24... Qc8 {[%clk 0:01:24.2]} 25. Qd3 {[%clk 0:01:45.3]}
25... f6 {[%clk 0:01:09.3]} 26. exf6 {[%clk 0:01:38.8]} 26... gxf6 {[%clk
0:01:10.2]} 27. Bf4 {[%clk 0:01:36.8]} 27... Kh8 {[%clk 0:00:44.6]} 28. Nh4
{[%clk 0:01:32.2]} 28... Rg8 {[%clk 0:00:42.9]} 29. f3 {[%clk 0:01:24.9]} 29...
Re6 {[%clk 0:00:33.2]} 30. a3 {[%clk 0:01:10.5]} 30... Bd6 {[%clk 0:00:19.4]}
31. Bxd6 {[%clk 0:01:08.2]} 31... Nxd6 {[%clk 0:00:19]} 32. Rh1 {[%clk
0:00:54.2]} 32... Ne4+ {[%clk 0:00:12.6]} 33. Kg2 {[%clk 0:00:37.5]} 33... Re7
{[%clk 0:00:11.9]} 34. Rh3 {[%clk 0:00:21.8]} 34... Reg7 {[%clk 0:00:08.6]} 35.
Kh2 {[%clk 0:00:20.3]} 35... Qd7 {[%clk 0:00:06.4]} 36. Ng6+ {[%clk 0:00:19.5]}
36... Rxg6 {[%clk 0:00:05.8]} 37. hxg6 {[%clk 0:00:19.9]} 37... Ng5 {[%clk
0:00:02.6]} 38. gxh7 {[%clk 0:00:18.9]} 38... Rg7 {[%clk 0:00:02.3]} 39. Rh5
{[%clk 0:00:19.3]} 39... Qd6+ {[%clk 0:00:02.3]} 40. Kg2 {[%clk 0:00:19.5]}
40... Qf4 {[%clk 0:00:03.2]} 41. Qxc3 {[%clk 0:00:18.7]} 41... Re7 {[%clk
0:00:03.2]} 42. Ra2 {[%clk 0:00:04.6]} 42... Nxh7 {[%clk 0:00:03.1]} 43. Rb2
{[%clk 0:00:04.3]} 43... Kg8 {[%clk 0:00:04]} 44. Rb8+ {[%clk 0:00:04.2]} 44...
Kg7 {[%clk 0:00:04.4]} 45. Qd3 {[%clk 0:00:03.8]} 45... Ng5 {[%clk 0:00:03.5]}
46. Rbh8 {[%clk 0:00:04.3]} 46... Kf7 {[%clk 0:00:03]} 47. R5h7+ {[%clk
0:00:03.1]} 47... Nxh7 {[%clk 0:00:03.2]} 48. Qxh7+ {[%clk 0:00:03.7]} 48... Ke6
{[%clk 0:00:03.5]} 49. Qg8+ {[%clk 0:00:04.6]} 49... Kd6 {[%clk 0:00:03.6]} 50.
Qd8+ {[%clk 0:00:05.2]} 50... Rd7 {[%clk 0:00:04.1]} 51. Qf8+ {[%clk 0:00:05.6]}
51... Kc6 {[%clk 0:00:04.3]} 52. Qc5+ {[%clk 0:00:06.2]} 52... Kb7 {[%clk
0:00:04]} 53. Qb5+ {[%clk 0:00:07.1]} 53... Ka7 {[%clk 0:00:04]} 54. Qxa5+
{[%clk 0:00:07.3]} 1-0

[Event "*** Titled Tuesday Blitz"]
[Site "Chess.com"]
[Date "2021.03.09"]
[Round "9"]
[White "Bodnar_Mykola"]
[Black "Ranindu2003"]
[Result "1-0"]
[WhiteElo "2511"]
[BlackElo "2603"]
[TimeControl "180+1"]
[EndTime "11:48:48 PST"]
[Termination "Bodnar_Mykola won by checkmate"]

1. d4 {[%clk 0:03:00.9]} 1... d5 {[%clk 0:02:58.6]} 2. Nc3 {[%clk 0:03:01.3]}
2... Nf6 {[%clk 0:02:57.4]} 3. Bf4 {[%clk 0:03:00.9]} 3... a6 {[%clk 0:02:56.3]}
4. e3 {[%clk 0:02:59.7]} 4... e6 {[%clk 0:02:56.8]} 5. g4 {[%clk 0:02:57.9]}
5... Bd6 {[%clk 0:02:52.2]} 6. Bxd6 {[%clk 0:02:51.5]} 6... Qxd6 {[%clk
0:02:51.4]} 7. g5 {[%clk 0:02:51.7]} 7... Ne4 {[%clk 0:02:35.3]} 8. Nxe4 {[%clk
0:02:34.9]} 8... dxe4 {[%clk 0:02:36.2]} 9. Qd2 {[%clk 0:02:34]} 9... b6 {[%clk
0:02:35.8]} 10. h4 {[%clk 0:02:32.2]} 10... Bb7 {[%clk 0:02:35.6]} 11. O-O-O
{[%clk 0:02:31.1]} 11... O-O {[%clk 0:02:34.9]} 12. Kb1 {[%clk 0:02:30.5]} 12...
e5 {[%clk 0:02:22.7]} 13. dxe5 {[%clk 0:02:25.9]} 13... Qxe5 {[%clk 0:02:23.6]}
14. Nh3 {[%clk 0:02:22.3]} 14... Nc6 {[%clk 0:02:19.2]} 15. Bc4 {[%clk
0:02:21.9]} 15... Rad8 {[%clk 0:02:11.8]} 16. Qe2 {[%clk 0:02:18.6]} 16... b5
{[%clk 0:02:11.8]} 17. Bb3 {[%clk 0:02:17.9]} 17... a5 {[%clk 0:02:00.1]} 18.
Nf4 {[%clk 0:02:15.7]} 18... a4 {[%clk 0:01:47]} 19. Bd5 {[%clk 0:01:18.7]}
19... a3 {[%clk 0:01:42.3]} 20. Qxb5 {[%clk 0:01:17.1]} 20... Ba6 {[%clk
0:01:32.6]} 21. Bxf7+ {[%clk 0:00:39.8]} 21... Kxf7 {[%clk 0:01:29.9]} 22. Qxe5
{[%clk 0:00:40.4]} 22... Nxe5 {[%clk 0:01:24.6]} 23. b3 {[%clk 0:00:40.4]} 23...
c5 {[%clk 0:01:17.9]} 24. c4 {[%clk 0:00:38.4]} 24... Nd3 {[%clk 0:01:06.5]} 25.
Nd5 {[%clk 0:00:15.2]} 25... Bb7 {[%clk 0:01:00]} 26. Nc3 {[%clk 0:00:09.4]}
26... Nxf2 {[%clk 0:00:59]} 27. Rdf1 {[%clk 0:00:10]} 27... Ke6 {[%clk 0:00:57]}
28. Rh2 {[%clk 0:00:10]} 28... Nd3 {[%clk 0:00:52.9]} 29. Rd1 {[%clk 0:00:06.7]}
29... Rf3 {[%clk 0:00:51.2]} 30. Re2 {[%clk 0:00:06.5]} 30... Rdf8 {[%clk
0:00:50.6]} 31. Nb5 {[%clk 0:00:06.5]} 31... Rf1 {[%clk 0:00:46.5]} 32. Rd2
{[%clk 0:00:05.1]} 32... R8f2 {[%clk 0:00:36.8]} 33. Nxa3 {[%clk 0:00:04.6]}
33... Rxd1+ {[%clk 0:00:24.1]} 34. Rxd1 {[%clk 0:00:05.5]} 34... Re2 {[%clk
0:00:24.8]} 35. Nc2 {[%clk 0:00:05.4]} 35... Bc6 {[%clk 0:00:19]} 36. Rf1 {[%clk
0:00:04.5]} 36... Be8 {[%clk 0:00:19.1]} 37. a4 {[%clk 0:00:03.2]} 37... Rh2
{[%clk 0:00:17.3]} 38. a5 {[%clk 0:00:03.3]} 38... Bc6 {[%clk 0:00:12.8]} 39. a6
{[%clk 0:00:02.9]} 39... Ke7 {[%clk 0:00:12.6]} 40. a7 {[%clk 0:00:03]} 40...
Rxh4 {[%clk 0:00:12.3]} 41. b4 {[%clk 0:00:02.1]} 41... cxb4 {[%clk 0:00:12]}
42. Nd4 {[%clk 0:00:02.3]} 42... Ba8 {[%clk 0:00:12]} 43. Nf5+ {[%clk
0:00:02.5]} 43... Ke6 {[%clk 0:00:11]} 44. Nxh4 {[%clk 0:00:03.1]} 44... Ne5
{[%clk 0:00:11.1]} 45. Rf8 {[%clk 0:00:02.9]} 45... b3 {[%clk 0:00:10.4]} 46.
Rxa8 {[%clk 0:00:02.9]} 46... Nxc4 {[%clk 0:00:11.3]} 47. Re8+ {[%clk
0:00:03.1]} 47... Kf7 {[%clk 0:00:11.9]} 48. a8=Q {[%clk 0:00:03.6]} 48... Nd2+
{[%clk 0:00:12.8]} 49. Kb2 {[%clk 0:00:03.7]} 49... Nc4+ {[%clk 0:00:10.9]} 50.
Kxb3 {[%clk 0:00:04.4]} 50... Nxe3 {[%clk 0:00:11.3]} 51. Qxe4 {[%clk
0:00:04.9]} 51... Nf5 {[%clk 0:00:11]} 52. Qe6# {[%clk 0:00:05.1]} 1-0